fUSD/lending_fUSD_20240204
["ID","MTS","AMOUNT","RATE_DAILY","PERIOD"]
[313245534,1707007849661,-1138.0,0.00037208,2]
[313245535,1707007849670,-19783.0,0.00037208,2]
[313245536,1707007849680,-2912.705,0.00037208,2]
[313245537,1707007849689,-200.0,0.00037383,2]
[313245538,1707007849698,-205.0,0.0003739,2]
[313245539,1707007849707,-211.0,0.0003739,2]
[313245540,1707007849715,-206.0,0.00037493,16]
[313245541,1707007849724,-2001.22,0.0003751,2]
[313245542,1707007849733,-179.56667641,0.00037529,7]
[313245543,1707007849743,-184.0,0.00037595,2]
[313245544,1707007849752,-150.0,0.00037635,2]
[313245545,1707007849765,-4541.24986505,0.00037666,10]
[313245546,1707007849775,-49989.04167146,0.00037699,2]
[313245547,1707007849786,-800.0,0.00037764,2]
[313245548,1707007849797,-201.333526,0.000378,12]
[313245549,1707007849807,-152.0,0.00037838,7]
[313245550,1707007849816,-1125.924739,0.00037874,2]
[313245551,1707007849825,-142200.203315,0.00037874,2]
[313245552,1707007849835,-9514.1165955,0.00037874,2]
[313245553,1707007849844,-22155.07529258,0.00037877,10]
[313245554,1707007849853,-1081.9364882,0.00037896,2]
[313245555,1707007849862,-136644.6470662,0.00037896,2]
[313245556,1707007849873,-9154.2739072,0.00037896,2]
[313245557,1707007849882,-1959.8255711,0.000379,7]
[313245558,1707007849892,-646156.178031,0.000379,3]
[313245559,1707007849901,-1037.9482373,0.00037974,2]
[313245560,1707007849911,-131089.0908175,0.00037974,2]
[313245561,1707007849920,-8794.4312189,0.00037974,2]
[313245562,1707007849929,-50000.0,0.00038,8]
[313245563,1707007849939,-222054.88562068,0.00038,2]
[313245564,1707007849948,-320258.38646303,0.00038,2]
[313245565,1707007849958,-3000.0,0.00038,10]
[313245566,1707007849967,-1003.0,0.00038,6]
[313245567,1707007849976,-300.0,0.00038,39]
[313245568,1707007849986,-147506.57596809,0.00038,2]
[313245569,1707007849994,-950.0,0.00038,3]
[313245570,1707007850004,-2687.97,0.00038,3]
[313245571,1707007850013,-2687.97,0.00038,3]
[313245572,1707007850023,-2687.97,0.00038,3]
[313245573,1707007850033,-2687.97,0.00038,3]
[313245574,1707007850043,-2687.97,0.00038,3]
[313245575,1707007850053,-2687.97,0.00038,3]
[313245576,1707007850062,-2687.97,0.00038,3]
[313245577,1707007850071,-2687.97,0.00038,3]
[313245578,1707007850081,-2687.97,0.00038,3]
[313245579,1707007850091,-2687.97,0.00038,3]
[313245580,1707007850101,-2687.97,0.00038,3]
[313245581,1707007850110,-2687.97,0.00038,3]
[313245582,1707007850120,-2687.97,0.00038,3]
[313245583,1707007850130,-2687.97,0.00038,3]
[313245584,1707007850139,-2687.97,0.00038,3]
[313245585,1707007850149,-2687.97,0.00038,3]
[313245586,1707007850158,-2687.97,0.00038,3]
[313245587,1707007850168,-2687.97,0.00038,3]
[313245588,1707007850178,-2687.97,0.00038,3]
[313245589,1707007850188,-2687.97,0.00038,3]
[313245590,1707007850198,-317.517096,0.00038,2]
[313245591,1707007850208,-108836.42965073,0.00038,2]
[313245592,1707007850217,-152.94827905,0.00038006,2]
[313245593,1707007850226,-309.36,0.00038075,2]
[313245594,1707007850236,-714.41606531,0.000381,29]
[313245595,1707007850245,-150.1,0.000382,2]
[313245596,1707007850255,-150.0,0.00038212,2]
[313245597,1707007850264,-10892.93,0.00038219,2]
[313245598,1707007850273,-151.0,0.00038223,2]
[313245599,1707007850282,-250.49088,0.00038223,2]
[313245600,1707007850293,-10000.0,0.00038252,2]
[313245601,1707007850303,-1428.68628544,0.00038256,2]
[313245602,1707007850312,-4000.0,0.00038356,60]
[313245603,1707007850322,-150.0,0.00038356,2]
[313245604,1707007850331,-155.0,0.00038357,2]
[313245605,1707007850341,-10072.22598915,0.000384,2]
[313245606,1707007850350,-43636.07434575,0.0003844,4]
[313245607,1707007850360,-260.92996354,0.00038495,2]
[313245608,1707007850370,-2001.22,0.00038595,2]
[313245609,1707007850379,-3826.0219175,0.00038664,2]
[313245610,1707007850389,-212.28,0.0003872,2]
[313245611,1707007850398,-205.0,0.0003872,2]
[313245612,1707007850408,-211.0,0.0003872,2]
[313245613,1707007850417,-1183.08919025,0.00038765,2]
[313245614,1707007850426,-4541.24986505,0.00038783,12]
[313245615,1707007850436,-150.0,0.00038789,2]
[313245616,1707007850446,-21423.3321503,0.000388,4]
[313245617,1707007850456,-302.0,0.00038866,4]
[313245618,1707007850465,-36101.29581137,0.0003888,2]
[313245619,1707007850474,-36101.29581137,0.0003888,2]
[313245620,1707007850484,-36101.29581137,0.0003888,2]
[313245621,1707007850493,-36101.29581137,0.0003888,2]
[313245622,1707007850502,-36101.29581137,0.0003888,2]
[313245623,1707007850511,-36101.29581137,0.0003888,2]
[313245624,1707007850520,-36101.29581137,0.0003888,2]
[313245625,1707007850529,-4021.20666775,0.000389,15]
[313245626,1707007850540,-153.58945095,0.0003891,7]
[313245627,1707007850550,-128207.7352575,0.0003897,2]
[313245628,1707007850559,-282.95053524,0.0003898,2]
[313245629,1707007850569,-5000.0,0.00038986,4]
[313245630,1707007850580,-5000.0,0.00038986,4]
[313245631,1707007850590,-5000.0,0.00038986,4]
[313245632,1707007850599,-5000.0,0.00038986,4]
[313245633,1707007850609,-5000.0,0.00038986,4]
[313245634,1707007850618,-5000.0,0.00038986,4]
[313245635,1707007850627,-5000.0,0.00038986,4]
[313245636,1707007850637,-5000.0,0.00038986,4]
[313245637,1707007850646,-5000.0,0.00038986,4]
[313245638,1707007850656,-5000.0,0.00038986,4]
[313245639,1707007850666,-5000.0,0.00038986,4]
[313245640,1707007850676,-5000.0,0.00038986,4]
[313245641,1707007850685,-5000.0,0.00038986,4]
[313245642,1707007850695,-5000.0,0.00038986,4]
[313245643,1707007850705,-5000.0,0.00038986,4]
[313245644,1707007850714,-2370.67051631,0.00038986,4]
[313245645,1707007850725,-152.0,0.00038986,8]
[313245646,1707007850735,-5000.0,0.00038997,4]
[313245647,1707007850744,-50000.0,0.00039,9]
[313245648,1707007850753,-622.4955174,0.00039,4]
[313245649,1707007850762,-979.73118785,0.00039,4]
[313245650,1707007850771,-1433.37465658,0.00039,2]
[313245651,1707007850781,-245.505025,0.00039,5]
[313245652,1707007850792,-500.0,0.00039,2]
[313245653,1707007850804,-4650.0,0.00039,10]
[313245654,1707007850813,-10037.0601107,0.00039,30]
[313245655,1707007850823,-300.0,0.00039,40]
[313245656,1707007850833,-150.1,0.00039,2]
[313245657,1707007850843,-317.517096,0.00039,2]
[313245658,1707007850852,-3000.0,0.00039,24]
[313245659,1707007850862,-3000.0,0.0003901,24]
[313245660,1707007850871,-3000.000003,0.0003902,24]
[313245661,1707007850881,-36101.29581137,0.0003919,2]
[313245662,1707007850891,-1000.0,0.0003926,2]
[313245663,1707007850900,-151.07668403,0.00039311,2]
[313245664,1707007850910,-5000.0,0.00039355,4]
[313245665,1707007850919,-150.0,0.00039366,2]
[313245666,1707007850928,-150.0,0.00039366,2]
[313245667,1707007850937,-153.49,0.000394,3]
[313245668,1707007850947,-153.49,0.000394,3]
[313245669,1707007850956,-153.49,0.000394,3]
[313245670,1707007850966,-153.49,0.000394,3]
[313245671,1707007850975,-153.49,0.000394,3]
[313245672,1707007850984,-153.49,0.000394,3]
[313245673,1707007850993,-153.49,0.000394,3]
[313245674,1707007851002,-153.49,0.000394,3]
[313245675,1707007851011,-309.36,0.0003949,2]
[313245676,1707007851020,-3249.65869739,0.000395,2]
[313245677,1707007851030,-5000.0,0.000395,4]
[313245678,1707007851040,-604.0,0.00039519,7]
[313245679,1707007851048,-10000.0,0.0003957,2]
[313245680,1707007851058,-2001.22,0.0003968,2]
[313245681,1707007851067,-5000.0,0.00039712,4]
[313245682,1707007851076,-155.0,0.00039727,2]
[313245683,1707007851086,-381989.599671,0.00039781,7]
[313245684,1707007851095,-153.58945095,0.00039831,7]
[313245685,1707007851105,-91946.57132952,0.00039865,2]
[313245686,1707007851123,-4541.24986505,0.000399,13]
[313245687,1707007851136,-11398.13966278,0.000399,15]
[313245688,1707007851145,-714.41606531,0.000399,31]
[313245689,1707007851155,-150.0,0.00039942,2]
[313245690,1707007851165,-190.45318461,0.0003998,5]
[313245691,1707007851175,-151.29925324,0.0003998,2]
[313245692,1707007851184,-500.0,0.00039999,31]
[313245693,1707007851194,-444.96983273,0.00039999,31]
[313245694,1707007851204,-500.0,0.00039999,31]
[313245695,1707007851213,-417.24579227,0.00039999,31]
[313245696,1707007851223,-372.70033826,0.00039999,31]
[313245697,1707007851232,-500.0,0.00039999,31]
[313245698,1707007851242,-500.0,0.00039999,31]
[313245699,1707007851252,-257.62701179,0.00039999,31]
[313245700,1707007851262,-500.0,0.00039999,31]
[313245701,1707007851272,-233.38258829,0.00039999,31]
[313245702,1707007851281,-374.77958423,0.00039999,31]
[313245703,1707007851292,-100000.0,0.0004,20]
[313245705,1707007851302,-1692.04908722,0.0004,3]
[313245706,1707007851311,-389.64217634,0.0004,3]
[313245707,1707007851320,-83680.39355253,0.0004,4]
[313245708,1707007851330,-155.0,0.0004,4]
[313245709,1707007851339,-2688.89272339,0.0004,4]
[313245710,1707007851349,-2278.54373746,0.0004,4]
[313245711,1707007851359,-54475.67396299,0.0004,4]
[313245712,1707007851368,-1086.91516621,0.0004,10]
[313245713,1707007851377,-33900.08483604,0.0004,4]
[313245714,1707007851387,-213.09966884,0.0004,3]
[313245715,1707007851396,-400.00047982,0.0004,120]
[313245716,1707007851406,-155.0,0.0004,4]
[313245717,1707007851415,-155.0,0.0004,2]
[313245718,1707007851425,-1088.46042194,0.0004,4]
[313245719,1707007851434,-1209.19767859,0.0004,4]
[313245720,1707007851443,-22112.67214315,0.0004,4]
[313245721,1707007851453,-191.21247749,0.0004,2]
[313245722,1707007851463,-1500.0,0.0004,4]
[313245723,1707007851472,-571.25243846,0.0004,4]
[313245724,1707007851482,-3827.93,0.0004,30]
[313245725,1707007851491,-3000.0,0.0004,10]
[313245726,1707007851500,-9874.82378376,0.0004,4]
[313245727,1707007851510,-6080.09,0.0004,2]
[313245728,1707007851519,-511.17679894,0.0004,2]
[313245729,1707007851529,-2500.0,0.0004,30]
[313245730,1707007851538,-425103.64260469,0.0004,7]
[313245731,1707007851686,-930.78026491,0.0004,2]
[313245732,1707007851696,-500.0,0.0004,3]
[313245733,1707007851706,-672.73864768,0.0004,20]
[313245734,1707007851715,-500.0,0.0004,2]
[313245735,1707007851724,-5000.0,0.0004,30]
[313245736,1707007851734,-1337.25882865,0.0004,5]
[313245737,1707007851743,-113413.5829454,0.0004,30]
[313245738,1707007851752,-1000.0,0.0004,9]
[313245739,1707007851762,-1004.04256345,0.0004,2]
[313245740,1707007851771,-493.37738756,0.0004,30]
[313245741,1707007851781,-109962.4787073,0.0004,2]
[313245742,1707007851791,-300.0,0.0004,41]
[313245743,1707007851802,-2007.6306,0.0004,5]
[313245744,1707007851811,-2000.0,0.0004,5]
[313245745,1707007851820,-730.02600857,0.0004,7]
[313245746,1707007851830,-180.78854923,0.0004,2]
[313245747,1707007851841,-184.8180645,0.0004,10]
[313245748,1707007851851,-228.45038981,0.0004,10]
[313245749,1707007851861,-421.99219915,0.0004,10]
[313245750,1707007851871,-376.98135483,0.0004,10]
[313245751,1707007851880,-213.83854166,0.0004,10]
[313245752,1707007851889,-19216.54220265,0.0004,2]
[313245753,1707007851898,-307.32354797,0.0004,10]
[313245754,1707007851907,-417.8484453,0.0004,10]
[313245755,1707007851916,-1000.0,0.0004,3]
[313245756,1707007851925,-285.39094725,0.0004,10]
[313245757,1707007851935,-255.0,0.0004,12]
[313245758,1707007851944,-166.69013561,0.0004,30]
[313245759,1707007851953,-590.24574265,0.0004,30]
[313245760,1707007851963,-255.0,0.0004,12]
[313245761,1707007851972,-200.0,0.0004,41]
[313245762,1707007851982,-25195.2974639,0.0004,30]
[313245763,1707007851991,-255.0,0.0004,12]
[313245764,1707007852000,-186.34176686,0.0004,10]
[313245765,1707007852009,-1298.59469669,0.0004,30]
[313245766,1707007852018,-255.0,0.0004,12]
[313245767,1707007852027,-1306.4410918,0.0004,2]
[313245768,1707007852036,-255.0,0.0004,12]
[313245769,1707007852045,-255.0,0.0004,12]
[313245770,1707007852054,-255.0,0.0004,12]
[313245771,1707007852064,-73164.18324809,0.0004,30]
[313245772,1707007852073,-205.0,0.0004005,2]
[313245773,1707007852081,-211.0,0.0004005,2]
[313245774,1707007852091,-5000.0,0.00040069,4]
[313245775,1707007852100,-152.0,0.00040135,9]
[313245776,1707007852110,-190830.455,0.00040145,7]
[313245777,1707007852119,-166.99392,0.00040183,4]
[313245778,1707007852128,-1232.0,0.00040208,2]
[313245779,1707007852138,-3525.186,0.00040208,2]
[313245780,1707007852147,-3826.0219175,0.00040243,5]
[313245781,1707007852156,-155.95021235,0.000403,4]
[313245782,1707007852165,-2687.97,0.000403,4]
[313245783,1707007852175,-2687.97,0.000403,4]
[313245784,1707007852185,-2687.97,0.000403,4]
[313245785,1707007852194,-2687.97,0.000403,4]
[313245786,1707007852203,-2687.97,0.000403,4]
[313245787,1707007852213,-2687.97,0.000403,4]
[313245788,1707007852223,-2687.97,0.000403,4]
[313245789,1707007852232,-2687.97,0.000403,4]
[313245790,1707007852242,-2687.97,0.000403,4]
[313245791,1707007852251,-2687.97,0.000403,4]
[313245792,1707007852260,-2687.97,0.000403,4]
[313245793,1707007852269,-2687.97,0.000403,4]
[313245794,1707007852278,-2687.97,0.000403,4]
[313245795,1707007852288,-2687.97,0.000403,4]
[313245796,1707007852297,-2687.97,0.000403,4]
[313245797,1707007852307,-2687.97,0.000403,4]
[313245798,1707007852317,-2687.97,0.000403,4]
[313245799,1707007852327,-2687.97,0.000403,4]
[313245800,1707007852338,-2687.97,0.000403,4]
[313245801,1707007852347,-2687.97,0.000403,4]
[313245802,1707007852357,-1000.0,0.000403,15]
[313245803,1707007852366,-150.0,0.00040375,2]
[313245804,1707007852376,-11398.13966272,0.000404,17]
[313245805,1707007852385,-5000.0,0.00040426,4]
[313245806,1707007852395,-38416.93126765,0.000405,2]
[313245807,1707007852405,-150.0,0.00040519,2]
[313245808,1707007852415,-1208.0,0.00040519,30]
[313245809,1707007852425,-476.60260111,0.00040589,2]
[313245810,1707007852435,-271.98943654,0.00040645,12]
[313245811,1707007852445,-271.98943651,0.00040645,12]
[313245812,1707007852455,-271.98943651,0.00040645,12]
[313245813,1707007852465,-271.98943651,0.00040645,12]
[313245814,1707007852476,-1000.0,0.00040733,2]
[313245815,1707007852487,-2001.22,0.00040765,2]
[313245816,1707007852496,-5000.0,0.00040784,4]
[313245817,1707007852505,-153.58945095,0.00040814,30]
[313245818,1707007852514,-158.02798029,0.0004083,30]
[313245819,1707007852523,-10000.0,0.00040888,2]
[313245820,1707007852533,-11398.13966272,0.000409,20]
[313245821,1707007852542,-309.36,0.00040905,2]
[313245822,1707007852551,-153.58945095,0.00040911,30]
[313245823,1707007852560,-158.02798029,0.00040956,30]
[313245824,1707007852569,-212.28,0.00040984,2]
[313245825,1707007852582,-200.0,0.00040987,10]
[313245826,1707007852591,-100000.0,0.00041,21]
[313245827,1707007852600,-800.0,0.00041,2]
[313245828,1707007852609,-1820.15576972,0.00041,2]
[313245829,1707007852619,-12971.09230328,0.00041,7]
[313245830,1707007852628,-173751.33085931,0.00041,5]
[313245831,1707007852638,-300.0,0.00041,42]
[313245832,1707007852647,-250.0,0.00041,45]
[313245833,1707007852657,-707.18318018,0.00041,30]
[313245834,1707007852666,-1306.4410918,0.00041,2]
[313245835,1707007852675,-1865.936214,0.00041,30]
[313245836,1707007852685,-150.1,0.00041096,2]
[313245837,1707007852695,-151.0,0.00041096,7]
[313245838,1707007852704,-151.0,0.00041096,7]
[313245839,1707007852714,-225.439266,0.00041096,7]
[313245840,1707007852723,-225.0,0.00041096,14]
[313245841,1707007852733,-225.0,0.00041096,14]
[313245842,1707007852742,-225.0,0.00041096,14]
[313245843,1707007852751,-225.0,0.00041096,14]
[313245844,1707007852760,-225.0,0.00041096,14]
[313245845,1707007852769,-225.0,0.00041096,14]
[313245846,1707007852779,-225.0,0.00041096,14]
[313245847,1707007852791,-225.0,0.00041096,14]
[313245848,1707007852801,-225.0,0.00041096,14]
[313245849,1707007852811,-225.0,0.00041096,14]
[313245850,1707007852820,-225.0,0.00041096,14]
[313245851,1707007852830,-225.0,0.00041096,14]
[313245852,1707007852840,-225.0,0.00041096,14]
[313245853,1707007852849,-225.0,0.00041096,14]
[313245854,1707007852859,-225.0,0.00041096,14]
[313245855,1707007852868,-225.0,0.00041096,14]
[313245856,1707007852879,-225.0,0.00041096,14]
[313245857,1707007852888,-225.0,0.00041096,14]
[313245858,1707007852898,-151.0,0.00041096,2]
[313245859,1707007852907,-151.0,0.00041096,2]
[313245860,1707007852917,-151.0,0.00041096,2]
[313245861,1707007852926,-151.0,0.00041096,2]
[313245862,1707007852935,-151.0,0.00041096,2]
[313245863,1707007852945,-151.0,0.00041096,2]
[313245864,1707007852954,-151.0,0.00041096,2]
[313245865,1707007852963,-243.599553,0.00041096,2]
[313245866,1707007852973,-151.0,0.00041096,14]
[313245867,1707007852982,-261.741814,0.00041096,14]
[313245868,1707007852991,-183.760703,0.00041096,14]
[313245869,1707007853001,-151.0,0.00041096,14]
[313245870,1707007853010,-151.0,0.00041096,14]
[313245871,1707007853019,-151.0,0.00041096,14]
[313245872,1707007853028,-151.0,0.00041096,14]
[313245873,1707007853038,-151.0,0.00041096,14]
[313245874,1707007853048,-151.0,0.00041096,14]
[313245875,1707007853057,-151.0,0.00041096,14]
[313245876,1707007853066,-151.0,0.00041096,14]
[313245877,1707007853076,-151.0,0.00041096,14]
[313245878,1707007853085,-151.0,0.00041096,14]
[313245879,1707007853094,-151.0,0.00041096,14]
[313245880,1707007853103,-151.0,0.00041096,14]
[313245881,1707007853113,-151.0,0.00041096,14]
[313245882,1707007853122,-151.0,0.00041096,14]
[313245883,1707007853131,-151.0,0.00041096,14]
[313245884,1707007853140,-151.0,0.00041096,14]
[313245885,1707007853149,-151.0,0.00041096,14]
[313245886,1707007853159,-151.0,0.00041096,14]
[313245887,1707007853168,-151.0,0.00041096,14]
[313245888,1707007853177,-151.0,0.00041096,14]
[313245889,1707007853187,-151.0,0.00041096,14]
[313245890,1707007853196,-151.0,0.00041096,14]
[313245891,1707007853205,-151.0,0.00041096,14]
[313245892,1707007853214,-181.0,0.00041096,2]
[313245893,1707007853224,-151.0,0.00041096,14]
[313245894,1707007853233,-151.0,0.00041096,14]
[313245895,1707007853242,-151.0,0.00041096,14]
[313245896,1707007853252,-207.0,0.00041096,14]
[313245897,1707007853261,-685.19,0.00041096,2]
[313245898,1707007853270,-151.0,0.00041096,14]
[313245899,1707007853279,-158.462904,0.00041096,14]
[313245900,1707007853289,-151.0,0.00041096,14]
[313245901,1707007853299,-151.0,0.00041096,14]
[313245902,1707007853308,-151.0,0.00041096,14]
[313245903,1707007853317,-151.0,0.00041096,14]
[313245904,1707007853326,-151.0,0.00041096,14]
[313245905,1707007853336,-151.0,0.00041096,14]
[313245906,1707007853344,-151.0,0.00041096,14]
[313245907,1707007853354,-151.0,0.00041096,14]
[313245908,1707007853363,-192.159822,0.00041096,14]
[313245909,1707007853372,-154.541386,0.00041096,14]
[313245910,1707007853381,-151.0,0.00041096,14]
[313245911,1707007853390,-165.827751,0.00041096,14]
[313245912,1707007853399,-151.0,0.00041096,14]
[313245913,1707007853409,-151.0,0.00041096,14]
[313245914,1707007853418,-151.0,0.00041096,14]
[313245915,1707007853427,-151.0,0.00041096,14]
[313245916,1707007853436,-151.0,0.00041096,14]
[313245917,1707007853445,-248.946984,0.00041096,14]
[313245918,1707007853454,-390.263844,0.00041096,14]
[313245919,1707007853463,-390.263844,0.00041096,14]
[313245920,1707007853472,-390.263844,0.00041096,14]
[313245921,1707007853481,-390.263844,0.00041096,14]
[313245922,1707007853490,-390.263844,0.00041096,14]
[313245923,1707007853499,-390.263844,0.00041096,14]
[313245924,1707007853508,-390.263844,0.00041096,14]
[313245925,1707007853517,-390.263844,0.00041096,14]
[313245926,1707007853526,-390.263844,0.00041096,14]
[313245927,1707007853535,-390.263844,0.00041096,14]
[313245928,1707007853545,-390.263844,0.00041096,14]
[313245929,1707007853554,-390.263844,0.00041096,14]
[313245930,1707007853564,-390.263844,0.00041096,14]
[313245931,1707007853573,-390.263844,0.00041096,14]
[313245932,1707007853582,-390.263844,0.00041096,14]
[313245933,1707007853592,-390.263844,0.00041096,14]
[313245934,1707007853601,-151.0,0.00041096,14]
[313245935,1707007853610,-839.805534,0.00041096,14]
[313245936,1707007853620,-839.805534,0.00041096,14]
[313245937,1707007853629,-839.805534,0.00041096,14]
[313245938,1707007853638,-839.805534,0.00041096,14]
[313245939,1707007853647,-839.805534,0.00041096,14]
[313245940,1707007853656,-839.805534,0.00041096,14]
[313245941,1707007853666,-839.805534,0.00041096,14]
[313245942,1707007853675,-839.805534,0.00041096,14]
[313245943,1707007853684,-839.805534,0.00041096,14]
[313245944,1707007853693,-839.805534,0.00041096,14]
[313245945,1707007853702,-839.805534,0.00041096,14]
[313245946,1707007853711,-151.0,0.00041096,14]
[313245947,1707007853721,-839.805534,0.00041096,14]
[313245948,1707007853730,-839.805534,0.00041096,14]
[313245949,1707007853739,-839.805534,0.00041096,14]
[313245950,1707007853748,-839.805534,0.00041096,14]
[313245951,1707007853757,-839.805534,0.00041096,14]
[313245952,1707007853766,-839.805534,0.00041096,14]
[313245953,1707007853776,-839.805534,0.00041096,14]
[313245954,1707007853786,-151.0,0.00041096,14]
[313245955,1707007853798,-151.0,0.00041096,14]
[313245956,1707007853807,-151.0,0.00041096,14]
[313245957,1707007853816,-277.119538,0.00041096,14]
[313245958,1707007853825,-151.0,0.00041096,14]
[313245959,1707007853834,-151.0,0.00041096,14]
[313245960,1707007853844,-151.0,0.00041096,14]
[313245961,1707007853953,-151.0,0.00041096,14]
[313245962,1707007853964,-151.0,0.00041096,14]
[313245963,1707007853973,-151.0,0.00041096,14]
[313245964,1707007853982,-151.0,0.00041096,14]
[313245965,1707007853991,-151.0,0.00041096,14]
[313245966,1707007854000,-151.0,0.00041096,14]
[313245967,1707007854009,-151.0,0.00041096,14]
[313245968,1707007854018,-151.0,0.00041096,14]
[313245969,1707007854029,-151.0,0.00041096,14]
[313245970,1707007854038,-151.0,0.00041096,14]
[313245971,1707007854047,-151.0,0.00041096,14]
[313245972,1707007854056,-151.0,0.00041096,14]
[313245973,1707007854065,-220.009606,0.00041096,14]
[313245974,1707007854075,-193.537408,0.00041096,14]
[313245975,1707007854084,-309.949866,0.00041096,14]
[313245976,1707007854094,-309.949866,0.00041096,14]
[313245977,1707007854103,-309.949866,0.00041096,14]
[313245978,1707007854112,-309.949866,0.00041096,14]
[313245979,1707007854121,-309.949866,0.00041096,14]
[313245980,1707007854130,-309.949866,0.00041096,14]
[313245981,1707007854140,-309.949866,0.00041096,14]
[313245982,1707007854149,-309.949866,0.00041096,14]
[313245983,1707007854158,-309.949866,0.00041096,14]
[313245984,1707007854168,-309.949866,0.00041096,14]
[313245985,1707007854177,-309.949866,0.00041096,14]
[313245986,1707007854187,-309.949866,0.00041096,14]
[313245987,1707007854196,-309.949866,0.00041096,14]
[313245988,1707007854205,-309.949866,0.00041096,14]
[313245989,1707007854214,-309.949866,0.00041096,14]
[313245990,1707007854224,-309.949866,0.00041096,14]
[313245991,1707007854233,-309.949866,0.00041096,14]
[313245992,1707007854243,-309.949866,0.00041096,14]
[313245993,1707007854252,-309.949866,0.00041096,14]
[313245994,1707007854261,-309.949866,0.00041096,14]
[313245995,1707007854270,-150.0,0.00041096,2]
[313245996,1707007854280,-155.0,0.00041097,2]
[313245997,1707007854289,-5000.0,0.000411,2]
[313245998,1707007854298,-385.4519274,0.000411,2]
[313245999,1707007854307,-476.73398796,0.000411,2]
[313246000,1707007854316,-3000.0,0.000411,2]
[313246001,1707007854326,-500.0,0.000411,2]
[313246002,1707007854335,-200.0,0.000411,2]
[313246003,1707007854344,-5263.55393651,0.000411,2]
[313246004,1707007854353,-1250.0,0.000411,2]
[313246005,1707007854362,-1000.0,0.000411,2]
[313246006,1707007854372,-5000.0,0.00041141,4]
[313246007,1707007854381,-152.0,0.00041284,10]
[313246008,1707007854389,-211.0,0.0004137,2]
[313246009,1707007854398,-205.0,0.0004137,2]
[313246010,1707007854407,-211.0,0.0004137,2]
[313246011,1707007854415,-150.0,0.00041384,2]
[313246012,1707007854424,-11398.13966272,0.000414,22]
[313246013,1707007854433,-5000.0,0.00041498,4]
[313246014,1707007854442,-1200.0,0.000415,30]
[313246015,1707007854451,-184.39903843,0.00041522,4]
[313246016,1707007854460,-36101.29581137,0.00041545,3]
[313246017,1707007854469,-5270.964968,0.00041545,7]
[313246018,1707007854478,-2688.411727,0.00041545,7]
[313246019,1707007854487,-22600.73304729,0.00041606,2]
[313246020,1707007854496,-2578.0,0.0004161,30]
[313246021,1707007854506,-227.368133,0.00041644,14]
[313246022,1707007854515,-225.0,0.00041645,14]
[313246023,1707007854524,-225.0,0.00041645,14]
[313246024,1707007854533,-219.109924,0.00041645,14]
[313246025,1707007854542,-246.897586,0.00041645,14]
[313246026,1707007854552,-390.263844,0.00041645,14]
[313246027,1707007854561,-390.263844,0.00041645,14]
[313246028,1707007854570,-390.263844,0.00041645,14]
[313246029,1707007854579,-390.263844,0.00041645,14]
[313246030,1707007854588,-839.805534,0.00041645,14]
[313246031,1707007854598,-839.805534,0.00041645,14]
[313246032,1707007854608,-300.0,0.00041645,45]
[313246033,1707007854618,-2116.64706212,0.00041645,2]
[313246034,1707007854628,-333.92038091,0.00041645,2]